[Event "Turkish Youth Championship 2024"]
[Site "Samsun"]
[Date "2024.05.22"]
[Round "7"]
[White "Gokturk, Murat Kutay"]
[Black "Ergin, Hasan Kaan"]
[Result "1-0"]
[ECO "C47"]
[WhiteElo "1862"]
[BlackElo "1632"]
[Annotator "NA RC"]
[PlyCount "67"]
[EventDate "2024.05.18"]
[EventType "swiss"]
[EventCountry "TUR"]
[SourceTitle "playchess.com"]
[Source "ChessBase"]
[SourceQuality "1"]
[TimeControl "5400+30"]

1. e4 {[%emt 0:01:00]} e5 {[%emt 0:01:00]} 2. Nf3 {[%emt 0:00:00]} Nc6 {[%emt 0:00:30]} 3. Nc3 {[%emt 0:00:00]} Nf6 {[%emt 0:00:00]} 4. a3 {[%emt 0:00:00]} a6 {[%emt 0:03:00]} 5. d4 {[%emt 0:00:00]} exd4 {[%emt 0:03:30]} 6. Nxd4 {[%emt 0:00:30]} Nxe4 {[%emt 0:00:30]} 7. Nxe4 {[%emt 0:00:30]} Qe7 {[%emt 0:00:30]} 8. f3 {[%emt 0:00:30]} d5 {[%emt 0:00:30]} 9. Nxc6 {[%emt 0:00:30]} bxc6 {[%emt 0:00:30]} 10. Bd3 {[%emt 0:00:30]} dxe4 {[%emt 0:00:30]} 11. fxe4 {[%emt 0:00:30]} g6 {[%emt 0:05:30]} 12. O-O {[%emt 0:37:30]} Bg7 {[%emt 0:00:30]} 13. c3 {[%emt 0:08:30]} O-O {[%emt 0:02:30]} 14. Bf4 {[%emt 0:04:30]} Be6 {[%emt 0:02:30]} 15. Qe2 {[%emt 0:09:30]} a5 {[%emt 0:04:30]} 16. Kh1 {[%emt 0:01:30]} Rab8 {[%emt 0:02:30]} 17. Rac1 {[%emt 0:02:30]} Rb3 {[%emt 0:08:30]} 18. Rc2 {[%emt 0:03:30]} Rfb8 {[%emt 0:09:30]} 19. Rf2 {[%emt 0:01:30]} c5 {[%emt 0:05:30]} 20. h3 {[%emt 0:02:30]} R3b6 {[%emt 0:04:30]} 21. Rd2 {[%emt 0:04:30]} Bb3 {[%emt 0:03:30]} 22. Bc4 {[%emt 0:02:35]} a4 {[%emt 0:01:30]} 23. Bxb3 {[%emt 0:03:11]} axb3 {[%emt 0:01:30]} 24. Qc4 {[%emt 0:02:18]} Bf8 {[%emt 0:03:30]} 25. Rd5 {[%emt 0:05:14]} Qh4 {[%emt 0:05:30]} 26. Rd7 {[%emt 0:01:08]} Rf6 {[%emt 0:01:30]} 27. Bg3 {[%emt 0:00:17]} Qg5 {[%emt 0:02:30]} 28. Rxf7 {[%emt 0:00:21]} Rxf7 {[%emt 0:01:30]} 29. Rxf7 {[%emt 0:03:51]} Kh8 {[%emt 0:00:30]} 30. Bf4 {[%emt 0:01:20]} Qh5 {[%emt 0:00:00]} 31. Qe6 {[%emt 0:02:42]} Bg7 {[%emt 0:00:00]} 32. Qe7 {[%emt 0:00:21]} Rg8 {[%emt 0:01:30]} 33. Rxg7 {[%emt 0:00:13]} Rxg7 {[%emt 0:01:30]} 34. Be5 {[%emt 0:00:14]} 1-0

[Event "Turkish Youth Championship 2024"]
[Site "Samsun"]
[Date "2024.05.22"]
[Round "7"]
[White "Herdem, Talha"]
[Black "Konyar, Enver"]
[Result "1-0"]
[ECO "B14"]
[WhiteElo "1844"]
[BlackElo "1606"]
[Annotator "NA RC"]
[PlyCount "79"]
[EventDate "2024.05.18"]
[EventType "swiss"]
[EventCountry "TUR"]
[SourceTitle "playchess.com"]
[Source "ChessBase"]
[SourceQuality "1"]
[TimeControl "5400+30"]

1. e4 {[%emt 0:01:00]} c6 {[%emt 0:01:00]} 2. d4 {[%emt 0:00:30]} d5 {[%emt 0:00:30]} 3. exd5 {[%emt 0:00:00]} cxd5 {[%emt 0:00:00]} 4. c4 {[%emt 0:00:00]} Nf6 {[%emt 0:00:00]} 5. Nc3 {[%emt 0:00:00]} e6 {[%emt 0:00:30]} 6. Nf3 {[%emt 0:00:00]} Bb4 {[%emt 0:00:30]} 7. cxd5 {[%emt 0:00:00]} Nxd5 {[%emt 0:00:30]} 8. Bd2 {[%emt 0:00:00]} Nc6 {[%emt 0:00:30]} 9. Bd3 {[%emt 0:00:30]} Be7 {[%emt 0:01:30]} 10. O-O {[%emt 0:00:00]} O-O {[%emt 0:00:30]} 11. Re1 {[%emt 0:01:00]} Nxc3 {[%emt 0:01:30]} 12. bxc3 {[%emt 0:00:00]} b6 {[%emt 0:02:30]} 13. Bf4 {[%emt 0:04:00]} Bb7 {[%emt 0:00:30]} 14. Bc2 {[%emt 0:02:30]} Bf6 {[%emt 0:00:30]} 15. Qd3 {[%emt 0:02:30]} g6 {[%emt 0:00:30]} 16. Nd2 {[%emt 0:11:30]} Ne7 {[%emt 0:01:30]} 17. Ne4 {[%emt 0:05:30]} Bxe4 {[%emt 0:00:30]} 18. Rxe4 {[%emt 0:02:30]} Nd5 {[%emt 0:00:30]} 19. Bd2 {[%emt 0:01:30]} Rc8 {[%emt 0:01:30]} 20. c4 {[%emt 0:01:30]} Ne7 {[%emt 0:00:30]} 21. Rd1 {[%emt 0:21:30]} Qc7 {[%emt 0:02:30]} 22. Bb3 {[%emt 0:00:30]} Rfd8 {[%emt 0:00:30]} 23. Bf4 {[%emt 0:02:30]} Qb7 {[%emt 0:04:30]} 24. d5 {[%emt 0:09:30]} exd5 {[%emt 0:02:30]} 25. cxd5 {[%emt 0:00:30]} Rc3 {[%emt 0:01:30]} 26. Qe2 {[%emt 0:14:31]} Rxb3 {[%emt 0:15:30]} 27. axb3 {[%emt 0:03:19]} Rxd5 {[%emt 0:00:30]} 28. Rxd5 {[%emt 0:04:00]} Qxd5 {[%emt 0:00:30]} 29. Be5 {[%emt 0:01:41]} Bg5 {[%emt 0:04:30]} 30. h4 {[%emt 0:01:37]} Bh6 {[%emt 0:00:30]} 31. Bf6 {[%emt 0:00:47]} Nc6 {[%emt 0:01:30]} 32. Re8+ {[%emt 0:00:44]} Bf8 {[%emt 0:00:30]} 33. Be7 {[%emt 0:00:59]} Nd4 {[%emt 0:02:30]} 34. Qc4 {[%emt 0:04:58]} Qxc4 {[%emt 0:02:30]} 35. Rxf8+ {[%emt 0:00:14]} Kg7 {[%emt 0:00:00]} 36. bxc4 {[%emt 0:00:30]} Nf5 {[%emt 0:00:00]} 37. Ba3 {[%emt 0:00:34]} Nxh4 {[%emt 0:00:30]} 38. Ra8 {[%emt 0:00:00]} a5 {[%emt 0:00:30]} 39. Ra6 {[%emt 0:00:00]} Nf3+ {[%emt 0:00:00]} 40. gxf3 {[%emt 0:00:00]} 1-0

[Event "Turkish Youth Championship 2024"]
[Site "Samsun"]
[Date "2024.05.22"]
[Round "7"]
[White "Gulbas, Isa"]
[Black "Toptal, Uygar Altan"]
[Result "0-1"]
[ECO "C44"]
[WhiteElo "1813"]
[BlackElo "1679"]
[Annotator "NA RC"]
[PlyCount "108"]
[EventDate "2024.05.18"]
[EventType "swiss"]
[EventCountry "TUR"]
[SourceTitle "playchess.com"]
[Source "ChessBase"]
[SourceQuality "1"]
[TimeControl "5400+30"]

1. e4 {[%emt 0:01:00]} e5 {[%emt 0:01:00]} 2. Nf3 {[%emt 0:00:30]} Nc6 {[%emt 0:00:00]} 3. c3 {[%emt 0:00:00]} Nf6 {[%emt 0:00:00]} 4. d4 {[%emt 0:00:00]} exd4 {[%emt 0:00:30]} 5. e5 {[%emt 0:00:00]} Nd5 {[%emt 0:00:30]} 6. Bc4 {[%emt 0:00:00]} Nb6 {[%emt 0:00:00]} 7. Bb3 {[%emt 0:00:00]} h6 {[%emt 0:07:00]} 8. O-O {[%emt 0:06:00]} d6 {[%emt 0:07:30]} 9. exd6 {[%emt 0:19:30]} cxd6 {[%emt 0:00:30]} 10. Nxd4 {[%emt 0:02:30]} Be7 {[%emt 0:04:30]} 11. Nxc6 {[%emt 0:02:30]} bxc6 {[%emt 0:00:00]} 12. Qf3 {[%emt 0:07:30]} d5 {[%emt 0:12:00]} 13. Qg3 {[%emt 0:00:30]} Bf6 {[%emt 0:06:30]} 14. Re1+ {[%emt 0:00:30]} Be6 {[%emt 0:00:00]} 15. Bc2 {[%emt 0:05:30]} Qd7 {[%emt 0:07:00]} 16. Nd2 {[%emt 0:10:30]} O-O {[%emt 0:08:30]} 17. Nb3 {[%emt 0:02:30]} Rfe8 {[%emt 0:03:30]} 18. Nc5 {[%emt 0:11:30]} Bf5 {[%emt 0:02:30]} 19. Bxh6 {[%emt 0:00:30]} Rxe1+ {[%emt 0:01:30]} 20. Rxe1 {[%emt 0:00:30]} Qc8 {[%emt 0:00:00]} 21. Bd1 {[%emt 0:11:39]} Qf8 {[%emt 0:01:00]} 22. Bg5 {[%emt 0:06:38]} Re8 {[%emt 0:01:30]} 23. Rxe8 {[%emt 0:01:16]} Qxe8 {[%emt 0:00:30]} 24. h3 {[%emt 0:00:51]} Qe1+ {[%emt 0:03:30]} 25. Kh2 {[%emt 0:00:25]} Bxg5 {[%emt 0:04:30]} 26. Qxg5 {[%emt 0:00:01]} Qxf2 {[%emt 0:00:30]} 27. Bf3 {[%emt 0:03:59]} Qxc5 {[%emt 0:02:30]} 28. Qxf5 {[%emt 0:00:02]} Qd6+ {[%emt 0:01:30]} 29. Kh1 {[%emt 0:00:18]} Qe6 {[%emt 0:00:00]} 30. Bg4 {[%emt 0:02:28]} Qxf5 {[%emt 0:01:00]} 31. Bxf5 {[%emt 0:00:30]} g6 {[%emt 0:00:30]} 32. Bd3 {[%emt 0:00:01]} Na4 {[%emt 0:00:30]} 33. Ba6 {[%emt 0:06:48]} Nxb2 {[%emt 0:00:30]} 34. Kg1 {[%emt 0:00:27]} Kg7 {[%emt 0:00:30]} 35. Kf1 {[%emt 0:00:21]} Nd1 {[%emt 0:01:30]} 36. Bb7 {[%emt 0:00:41]} Nxc3 {[%emt 0:02:30]} 37. Bxc6 {[%emt 0:00:03]} Nxa2 {[%emt 0:00:00]} 38. Bxd5 {[%emt 0:00:30]} Nc3 {[%emt 0:00:00]} 39. Bc4 {[%emt 0:00:30]} f5 {[%emt 0:00:30]} 40. Ke1 {[%emt 0:01:25]} Kf6 {[%emt 0:00:30]} 41. Kd2 {[%emt 0:00:00]} Ne4+ {[%emt 0:00:30]} 42. Ke3 {[%emt 0:00:00]} Ke5 {[%emt 0:00:00]} 43. h4 {[%emt 0:00:45]} f4+ {[%emt 0:00:00]} 44. Ke2 {[%emt 0:00:06]} Nd6 {[%emt 0:00:30]} 45. Bd3 {[%emt 0:01:15]} Nf5 {[%emt 0:00:30]} 46. Kf2 {[%emt 0:00:27]} Nxh4 {[%emt 0:00:30]} 47. g3 {[%emt 0:00:08]} Nf5 {[%emt 0:00:30]} 48. g4 {[%emt 0:00:10]} Ne3 {[%emt 0:00:30]} 49. g5 {[%emt 0:00:26]} Nf5 {[%emt 0:00:00]} 50. Kf3 {[%emt 0:00:02]} a5 {[%emt 0:00:00]} 51. Bc4 {[%emt 0:01:05]} a4 {[%emt 0:01:30]} 52. Bf7 {[%emt 0:00:08]} Nd4+ {[%emt 0:00:30]} 53. Kg4 {[%emt 0:00:04]} f3 {[%emt 0:00:00]} 54. Bxg6 {[%emt 0:00:27]} a3 {[%emt 0:00:00]} 0-1

[Event "Turkish Youth Championship 2024"]
[Site "Samsun"]
[Date "2024.05.22"]
[Round "7"]
[White "Sadik, Muhammed Selim"]
[Black "Cicek, Bilal Emre"]
[Result "1/2-1/2"]
[ECO "D30"]
[WhiteElo "1734"]
[BlackElo "1873"]
[Annotator "NA RC"]
[PlyCount "214"]
[EventDate "2024.05.18"]
[EventType "swiss"]
[EventCountry "TUR"]
[SourceTitle "playchess.com"]
[Source "ChessBase"]
[SourceQuality "1"]
[TimeControl "5400+30"]

1. d4 {[%emt 0:01:00]} d5 {[%emt 0:01:00]} 2. c4 {[%emt 0:00:30]} e6 {[%emt 0:00:00]} 3. Nf3 {[%emt 0:00:00]} a6 {[%emt 0:00:00]} 4. c5 {[%emt 0:00:00]} b6 {[%emt 0:00:30]} 5. cxb6 {[%emt 0:00:00]} c5 {[%emt 0:00:00]} 6. Qb3 {[%emt 0:00:00]} Nc6 {[%emt 0:05:00]} 7. Bf4 {[%emt 0:10:30]} Bb7 {[%emt 0:00:30]} 8. e3 {[%emt 0:00:30]} c4 {[%emt 0:02:30]} 9. Qc2 {[%emt 0:00:30]} Qxb6 {[%emt 0:00:30]} 10. Be2 {[%emt 0:00:30]} Nf6 {[%emt 0:00:30]} 11. Nc3 {[%emt 0:01:30]} Bb4 {[%emt 0:01:30]} 12. O-O {[%emt 0:00:30]} O-O {[%emt 0:00:30]} 13. Na4 {[%emt 0:04:30]} Qa7 {[%emt 0:08:30]} 14. b3 {[%emt 0:02:30]} Na5 {[%emt 0:02:30]} 15. bxc4 {[%emt 0:01:30]} dxc4 {[%emt 0:01:30]} 16. Be5 {[%emt 0:24:30]} Be4 {[%emt 0:01:30]} 17. Qd1 {[%emt 0:05:30]} Nd5 {[%emt 0:03:30]} 18. Nd2 {[%emt 0:04:30]} Bd3 {[%emt 0:07:30]} 19. Bxd3 {[%emt 0:01:30]} cxd3 {[%emt 0:00:30]} 20. Nf3 {[%emt 0:05:30]} f6 {[%emt 0:02:30]} 21. Bg3 {[%emt 0:00:30]} Qd7 {[%emt 0:00:00]} 22. a3 {[%emt 0:06:30]} Nc3 {[%emt 0:06:00]} 23. Nxc3 {[%emt 0:01:30]} Bxc3 {[%emt 0:00:00]} 24. Rb1 {[%emt 0:00:00]} d2 {[%emt 0:01:00]} 25. Nxd2 {[%emt 0:00:00]} e5 {[%emt 0:03:30]} 26. Ne4 {[%emt 0:00:30]} Rac8 {[%emt 0:00:30]} 27. Nxc3 {[%emt 0:01:30]} Rxc3 {[%emt 0:00:30]} 28. dxe5 {[%emt 0:00:30]} Rd3 {[%emt 0:00:30]} 29. Qe1 {[%emt 0:01:30]} Nc4 {[%emt 0:00:00]} 30. exf6 {[%emt 0:04:30]} Nd2 {[%emt 0:01:00]} 31. fxg7 {[%emt 0:00:30]} Rd8 {[%emt 0:00:30]} 32. h4 {[%emt 0:05:20]} Nxf1 {[%emt 0:17:30]} 33. Qxf1 {[%emt 0:00:41]} Rd1 {[%emt 0:00:30]} 34. Rxd1 {[%emt 0:01:43]} Qxd1 {[%emt 0:00:00]} 35. Bc7 {[%emt 0:00:06]} Rd2 {[%emt 0:03:00]} 36. Ba5 {[%emt 0:01:02]} Qxf1+ {[%emt 0:04:30]} 37. Kxf1 {[%emt 0:00:09]} Ra2 {[%emt 0:00:00]} 38. Bb4 {[%emt 0:00:30]} Kxg7 {[%emt 0:00:00]} 39. g4 {[%emt 0:00:41]} Kg6 {[%emt 0:00:00]} 40. Kg2 {[%emt 0:00:14]} h5 {[%emt 0:01:00]} 41. g5 {[%emt 0:00:01]} Rc2 {[%emt 0:00:00]} 42. e4 {[%emt 0:00:43]} Rc4 {[%emt 0:00:00]} 43. f3 {[%emt 0:00:17]} Kf7 {[%emt 0:01:30]} 44. Kg3 {[%emt 0:00:40]} Ke6 {[%emt 0:00:00]} 45. Kf4 {[%emt 0:04:30]} Rc1 {[%emt 0:01:00]} 46. Ke3 {[%emt 0:01:11]} Rh1 {[%emt 0:01:30]} 47. f4 {[%emt 0:00:01]} Rxh4 {[%emt 0:00:30]} 48. f5+ {[%emt 0:00:04]} Kf7 {[%emt 0:00:00]} 49. g6+ {[%emt 0:00:52]} Kg7 {[%emt 0:00:00]} 50. e5 {[%emt 0:01:15]} Rc4 {[%emt 0:02:30]} 51. e6 {[%emt 0:01:28]} Kf6 {[%emt 0:01:30]} 52. Bf8 {[%emt 0:00:13]} Rc1 {[%emt 0:02:30]} 53. Kd2 {[%emt 0:01:50]} Rc4 {[%emt 0:00:30]} 54. Ke3 {[%emt 0:02:44]} Rc1 {[%emt 0:00:00]} 55. Kf2 {[%emt 0:00:55]} Rc4 {[%emt 0:01:00]} 56. Kg3 {[%emt 0:03:00]} a5 {[%emt 0:02:30]} 57. Kh3 {[%emt 0:00:34]} a4 {[%emt 0:00:00]} 58. g7 {[%emt 0:00:55]} Rg4 {[%emt 0:00:00]} 59. e7 {[%emt 0:00:06]} Kf7 {[%emt 0:00:30]} 60. f6 {[%emt 0:00:00]} Ke8 {[%emt 0:00:30]} 61. g8=Q {[%emt 0:01:12]} Rxg8 {[%emt 0:00:30]} 62. Bg7 {[%emt 0:00:00]} Kf7 {[%emt 0:00:00]} 63. Kh4 {[%emt 0:00:00]} Rb8 {[%emt 0:00:00]} 64. Kxh5 {[%emt 0:00:02]} Rb3 {[%emt 0:00:30]} 65. Bf8 {[%emt 0:00:03]} Rg3 {[%emt 0:00:30]} 66. Kh4 {[%emt 0:00:34]} Rg6 {[%emt 0:00:00]} 67. Bg7 {[%emt 0:00:00]} Rg1 {[%emt 0:01:00]} 68. Kh5 {[%emt 0:00:00]} Rg3 {[%emt 0:00:30]} 69. Bf8 {[%emt 0:00:00]} Ke8 {[%emt 0:00:30]} 70. Kh4 {[%emt 0:00:33]} Rg2 {[%emt 0:00:30]} 71. Kh5 {[%emt 0:00:03]} Kf7 {[%emt 0:00:30]} 72. Kh4 {[%emt 0:00:05]} Rg6 {[%emt 0:03:30]} 73. Bg7 {[%emt 0:00:02]} Ke8 {[%emt 0:00:30]} 74. Kh5 {[%emt 0:00:06]} Rg3 {[%emt 0:00:30]} 75. Bf8 {[%emt 0:00:04]} Kf7 {[%emt 0:00:00]} 76. Kh4 {[%emt 0:01:07]} Re3 {[%emt 0:02:00]} 77. Kg5 {[%emt 0:00:09]} Re6 {[%emt 0:00:30]} 78. Bg7 {[%emt 0:00:20]} Re3 {[%emt 0:00:30]} 79. Bf8 {[%emt 0:00:41]} Rf3 {[%emt 0:00:00]} 80. e8=Q+ {[%emt 0:00:17]} Kxe8 {[%emt 0:00:00]} 81. Be7 {[%emt 0:00:02]} Kf7 {[%emt 0:00:30]} 82. Kg4 {[%emt 0:00:00]} Rf1 {[%emt 0:00:30]} 83. Kg5 {[%emt 0:00:00]} Ke6 {[%emt 0:00:00]} 84. Kg4 {[%emt 0:00:23]} Ke5 {[%emt 0:00:00]} 85. Kg5 {[%emt 0:00:28]} Rg1+ {[%emt 0:00:30]} 86. Kh6 {[%emt 0:00:33]} Ke6 {[%emt 0:00:00]} 87. Kh5 {[%emt 0:00:00]} Rg2 {[%emt 0:01:00]} 88. Kh6 {[%emt 0:00:04]} Kf7 {[%emt 0:00:30]} 89. Kh5 {[%emt 0:00:04]} Rg1 {[%emt 0:00:00]} 90. Kh6 {[%emt 0:00:08]} Rg2 {[%emt 0:01:00]} 91. Kh5 {[%emt 0:00:07]} Rg8 {[%emt 0:00:00]} 92. Kh6 {[%emt 0:00:06]} Ke6 {[%emt 0:00:00]} 93. Kh7 {[%emt 0:00:43]} Rg3 {[%emt 0:00:00]} 94. Kh6 {[%emt 0:00:03]} Kf7 {[%emt 0:01:00]} 95. Kh5 {[%emt 0:00:05]} Rg6 {[%emt 0:00:00]} 96. Kh4 {[%emt 0:00:43]} Rxf6 {[%emt 0:00:00]} 97. Bxf6 {[%emt 0:00:07]} Kxf6 {[%emt 0:00:00]} 98. Kg4 {[%emt 0:00:00]} Ke5 {[%emt 0:00:00]} 99. Kf3 {[%emt 0:00:05]} Kd4 {[%emt 0:00:30]} 100. Ke2 {[%emt 0:00:00]} Kc3 {[%emt 0:00:00]} 101. Kd1 {[%emt 0:00:07]} Kb2 {[%emt 0:00:00]} 102. Kd2 {[%emt 0:00:10]} Kxa3 {[%emt 0:00:00]} 103. Kc3 {[%emt 0:00:00]} Ka2 {[%emt 0:00:00]} 104. Kc2 {[%emt 0:00:04]} a3 {[%emt 0:00:30]} 105. Kc1 {[%emt 0:00:00]} Kb3 {[%emt 0:00:00]} 106. Kb1 {[%emt 0:00:10]} a2+ {[%emt 0:00:00]} 107. Ka1 {[%emt 0:00:00]} Ka3 {[%emt 0:00:00]} 1/2-1/2

[Event "Turkish Youth Championship 2024"]
[Site "Samsun"]
[Date "2024.05.22"]
[Round "7"]
[White "Cagatay, Mehmet Kayra"]
[Black "Ozgun, Yigit Deniz"]
[Result "0-1"]
[ECO "B90"]
[WhiteElo "1717"]
[BlackElo "1917"]
[Annotator "RC"]
[PlyCount "102"]
[EventDate "2024.05.18"]
[EventType "swiss"]
[EventCountry "TUR"]
[SourceTitle "playchess.com"]
[Source "ChessBase"]
[SourceQuality "1"]
[TimeControl "5400+30"]

1. e4 {[%emt 0:01:00]} c5 {[%emt 0:10:00]} 2. Nf3 {[%emt 0:00:00]} d6 {[%emt 0:00:30]} 3. d4 {[%emt 0:00:00]} cxd4 {[%emt 0:00:00]} 4. Nxd4 {[%emt 0:00:30]} Nf6 {[%emt 0:00:00]} 5. Nc3 {[%emt 0:00:00]} a6 {[%emt 0:00:30]} 6. a3 {[%emt 0:03:00]} e5 {[%emt 0:00:00]} 7. Nf5 {[%emt 0:00:00]} d5 {[%emt 0:00:00]} 8. Bg5 {[%emt 0:00:00]} d4 {[%emt 0:00:30]} 9. Bxf6 {[%emt 0:00:30]} gxf6 {[%emt 0:00:00]} 10. Nb1 {[%emt 0:00:30]} Bxf5 {[%emt 0:01:00]} 11. exf5 {[%emt 0:01:30]} Nc6 {[%emt 0:02:30]} 12. Bd3 {[%emt 0:00:00]} Qd5 {[%emt 0:00:00]} 13. Qe2 {[%emt 0:09:00]} Qa5+ {[%emt 0:06:00]} 14. Nd2 {[%emt 0:00:30]} Bh6 {[%emt 0:00:30]} 15. O-O-O {[%emt 0:01:30]} O-O-O {[%emt 0:05:30]} 16. Kb1 {[%emt 0:01:30]} Bxd2 {[%emt 0:00:30]} 17. Qxd2 {[%emt 0:02:30]} Qxd2 {[%emt 0:00:30]} 18. Rxd2 {[%emt 0:00:00]} Rhg8 {[%emt 0:00:30]} 19. g3 {[%emt 0:04:00]} Kb8 {[%emt 0:01:30]} 20. h4 {[%emt 0:01:30]} Ka7 {[%emt 0:01:30]} 21. Bc4 {[%emt 0:00:30]} Rd7 {[%emt 0:00:00]} 22. Re1 {[%emt 0:01:30]} b5 {[%emt 0:00:00]} 23. Bd3 {[%emt 0:00:00]} Rc7 {[%emt 0:03:30]} 24. Be4 {[%emt 0:05:00]} Na5 {[%emt 0:01:30]} 25. b3 {[%emt 0:00:00]} Kb6 {[%emt 0:04:30]} 26. Ka2 {[%emt 0:09:00]} Nc6 {[%emt 0:00:30]} 27. Kb2 {[%emt 0:00:30]} Nb8 {[%emt 0:03:30]} 28. Bd5 {[%emt 0:04:30]} Rd8 {[%emt 0:00:30]} 29. Bg2 {[%emt 0:02:30]} Nd7 {[%emt 0:01:30]} 30. b4 {[%emt 0:09:30]} Rg8 {[%emt 0:00:30]} 31. Be4 {[%emt 0:02:30]} Ka7 {[%emt 0:00:30]} 32. Bd5 {[%emt 0:01:30]} Nb6 {[%emt 0:00:30]} 33. Bb3 {[%emt 0:00:30]} Nc4+ {[%emt 0:01:30]} 34. Bxc4 {[%emt 0:01:30]} bxc4 {[%emt 0:00:30]} 35. c3 {[%emt 0:00:00]} Rg4 {[%emt 0:01:30]} 36. a4 {[%emt 0:02:00]} d3 {[%emt 0:00:30]} 37. a5 {[%emt 0:04:30]} Kb7 {[%emt 0:00:30]} 38. Ka3 {[%emt 0:03:30]} Kc6 {[%emt 0:00:00]} 39. Ka4 {[%emt 0:00:00]} Rb7 {[%emt 0:00:00]} 40. f4 {[%emt 0:01:00]} Kd5 {[%emt 0:00:30]} 41. fxe5 {[%emt 0:06:30]} fxe5 {[%emt 0:00:30]} 42. Rg2 {[%emt 0:00:00]} Re4 {[%emt 0:00:30]} 43. Rb1 {[%emt 0:02:00]} Re3 {[%emt 0:00:30]} 44. Ra2 {[%emt 0:08:27]} Rb5 {[%emt 0:00:00]} 45. Rg2 {[%emt 0:00:30]} Ke4 {[%emt 0:00:00]} 46. Ka3 {[%emt 0:01:40]} Re2 {[%emt 0:00:30]} 47. Rgg1 {[%emt 0:00:40]} d2 {[%emt 0:00:30]} 48. Rgd1 {[%emt 0:00:59]} Kd3 {[%emt 0:00:30]} 49. Kb2 {[%emt 0:00:00]} e4 {[%emt 0:00:30]} 50. g4 {[%emt 0:00:00]} e3 {[%emt 0:00:30]} 51. f6 {[%emt 0:00:10]} Rg2 {[%emt 0:00:00]} 0-1

[Event "Turkish Youth Championship 2024"]
[Site "Samsun"]
[Date "2024.05.22"]
[Round "7"]
[White "Yogurtcuoglu, Cagan"]
[Black "Topuz, Mirac Melih"]
[Result "0-1"]
[ECO "D87"]
[WhiteElo "1714"]
[BlackElo "2079"]
[Annotator "RC"]
[PlyCount "89"]
[EventDate "2024.05.18"]
[EventType "swiss"]
[EventCountry "TUR"]
[SourceTitle "playchess.com"]
[Source "ChessBase"]
[SourceQuality "1"]
[TimeControl "5400+30"]

1. d4 {[%emt 0:01:00]} Nf6 {[%emt 0:01:00]} 2. c4 {[%emt 0:00:00]} g6 {[%emt 0:00:30]} 3. Nc3 {[%emt 0:00:00]} d5 {[%emt 0:00:00]} 4. cxd5 {[%emt 0:00:30]} Nxd5 {[%emt 0:00:00]} 5. e4 {[%emt 0:00:30]} Nxc3 {[%emt 0:00:30]} 6. bxc3 {[%emt 0:00:30]} Bg7 {[%emt 0:00:30]} 7. Bc4 {[%emt 0:00:30]} c5 {[%emt 0:00:30]} 8. Ne2 {[%emt 0:00:00]} Nc6 {[%emt 0:00:00]} 9. Be3 {[%emt 0:00:00]} O-O {[%emt 0:00:00]} 10. O-O {[%emt 0:00:00]} Qc7 {[%emt 0:00:00]} 11. Qd2 {[%emt 0:32:00]} Rd8 {[%emt 0:08:00]} 12. Rad1 {[%emt 0:01:30]} Bd7 {[%emt 0:15:30]} 13. Bh6 {[%emt 0:08:30]} Bh8 {[%emt 0:07:30]} 14. e5 {[%emt 0:07:30]} cxd4 {[%emt 0:28:30]} 15. Qf4 {[%emt 0:00:30]} Be8 {[%emt 0:00:00]} 16. cxd4 {[%emt 0:00:30]} Rac8 {[%emt 0:16:18]} 17. Bb3 {[%emt 0:06:30]} Na5 {[%emt 0:00:40]} 18. Rc1 {[%emt 0:01:30]} Qb6 {[%emt 0:00:13]} 19. Rxc8 {[%emt 0:03:30]} Rxc8 {[%emt 0:00:19]} 20. Qg4 {[%emt 0:01:30]} Rd8 {[%emt 0:05:38]} 21. Rb1 {[%emt 0:01:30]} Nxb3 {[%emt 0:01:38]} 22. Rxb3 {[%emt 0:01:30]} Qc7 {[%emt 0:02:13]} 23. h4 {[%emt 0:00:30]} Bd7 {[%emt 0:03:37]} 24. Qg3 {[%emt 0:04:30]} Qa5 {[%emt 0:02:32]} 25. Qe3 {[%emt 0:02:30]} Bc6 {[%emt 0:01:25]} 26. a3 {[%emt 0:00:30]} Qd5 {[%emt 0:00:34]} 27. f3 {[%emt 0:03:30]} f6 {[%emt 0:04:49]} 28. Rc3 {[%emt 0:00:30]} fxe5 {[%emt 0:00:38]} 29. Rc5 {[%emt 0:00:30]} Qa2 {[%emt 0:00:03]} 30. dxe5 {[%emt 0:00:30]} Rd1+ {[%emt 0:00:42]} 31. Kh2 {[%emt 0:01:30]} Qb1 {[%emt 0:00:38]} 32. Ng3 {[%emt 0:00:30]} Qa2 {[%emt 0:01:26]} 33. Ne4 {[%emt 0:19:35]} Qf7 {[%emt 0:00:36]} 34. Ng5 {[%emt 0:00:50]} Qf5 {[%emt 0:00:25]} 35. e6 {[%emt 0:02:28]} Qb1 {[%emt 0:00:22]} 36. Ne4 {[%emt 0:00:34]} Re1 {[%emt 0:00:40]} 37. Qf2 {[%emt 0:00:27]} Rh1+ {[%emt 0:00:48]} 38. Kg3 {[%emt 0:00:05]} Qb6 {[%emt 0:00:03]} 39. Qd2 {[%emt 0:00:33]} Qc7+ {[%emt 0:00:38]} 40. Bf4 {[%emt 0:00:24]} Qc8 {[%emt 0:00:18]} 41. Ng5 {[%emt 0:00:31]} Bf6 {[%emt 0:00:32]} 42. Qe3 {[%emt 0:00:39]} Qd8 {[%emt 0:00:26]} 43. Be5 {[%emt 0:00:24]} Qf8 {[%emt 0:00:45]} 44. Bxf6 {[%emt 0:00:40]} Qxf6 {[%emt 0:00:10]} 45. Qc3 {[%emt 0:01:20]} 0-1

[Event "Turkish Youth Championship 2024"]
[Site "Samsun"]
[Date "2024.05.22"]
[Round "7"]
[White "Tonoglu, Engin Erdem"]
[Black "Cetindag, Alper"]
[Result "1/2-1/2"]
[ECO "A37"]
[WhiteElo "1691"]
[BlackElo "1839"]
[Annotator "NA RC"]
[PlyCount "65"]
[EventDate "2024.05.18"]
[EventType "swiss"]
[EventCountry "TUR"]
[SourceTitle "playchess.com"]
[Source "ChessBase"]
[SourceQuality "1"]
[TimeControl "5400+30"]

1. c4 {[%emt 0:01:00]} g6 {[%emt 0:01:00]} 2. Nc3 {[%emt 0:00:00]} Bg7 {[%emt 0:00:30]} 3. Nf3 {[%emt 0:00:00]} c5 {[%emt 0:00:00]} 4. g3 {[%emt 0:00:30]} Nc6 {[%emt 0:00:00]} 5. Bg2 {[%emt 0:00:30]} d6 {[%emt 0:00:30]} 6. O-O {[%emt 0:00:30]} e5 {[%emt 0:00:30]} 7. d3 {[%emt 0:00:00]} Nge7 {[%emt 0:00:30]} 8. e4 {[%emt 0:03:00]} O-O {[%emt 0:00:30]} 9. a3 {[%emt 0:03:30]} h6 {[%emt 0:00:30]} 10. Rb1 {[%emt 0:00:30]} a5 {[%emt 0:01:30]} 11. Ne1 {[%emt 0:00:30]} Nd4 {[%emt 0:03:30]} 12. Nc2 {[%emt 0:02:30]} Nxc2 {[%emt 0:03:30]} 13. Qxc2 {[%emt 0:00:30]} Nc6 {[%emt 0:00:00]} 14. Be3 {[%emt 0:02:30]} Be6 {[%emt 0:09:00]} 15. Nd5 {[%emt 0:01:30]} f5 {[%emt 0:10:30]} 16. f4 {[%emt 0:05:30]} exf4 {[%emt 0:02:30]} 17. Nxf4 {[%emt 0:00:30]} Qf6 {[%emt 0:24:30]} 18. Nxe6 {[%emt 0:04:30]} Qxe6 {[%emt 0:00:30]} 19. Rbe1 {[%emt 0:00:30]} Nd4 {[%emt 0:00:30]} 20. Bxd4 {[%emt 0:01:30]} Bxd4+ {[%emt 0:00:30]} 21. Kh1 {[%emt 0:00:00]} Rae8 {[%emt 0:02:30]} 22. Qd2 {[%emt 0:01:00]} f4 {[%emt 0:06:30]} 23. Rxf4 {[%emt 0:03:30]} g5 {[%emt 0:01:30]} 24. Rff1 {[%emt 0:02:30]} b6 {[%emt 0:05:30]} 25. Qe2 {[%emt 0:02:30]} Kg7 {[%emt 0:03:30]} 26. Bf3 {[%emt 0:00:30]} Qe5 {[%emt 0:00:30]} 27. Bh5 {[%emt 0:03:30]} Rd8 {[%emt 0:02:30]} 28. b3 {[%emt 0:01:30]} Qe6 {[%emt 0:04:11]} 29. a4 {[%emt 0:00:30]} Bc3 {[%emt 0:01:27]} 30. Rd1 {[%emt 0:03:30]} Bd4 {[%emt 0:01:06]} 31. Rde1 {[%emt 0:01:30]} Bc3 {[%emt 0:01:32]} 32. Rd1 {[%emt 0:03:30]} Bd4 {[%emt 0:00:55]} 33. Rde1 {[%emt 0:00:00]} 1/2-1/2